{"text_format":"1","workbook":"xlsx","n_sheets":2,"sheets":["TD  Cortes de Rosas","Consulta B"],"not_rendered":{"charts":1,"images":1,"macros":1,"external_links":0,"defined_names":11,"comments":0,"pivot_tables":1},"unopened":[],"bounds":{"document_bytes":16777216,"sheet_cells":100000,"rows_first":2000,"rows_last":500,"rows_between":2000,"halvings":0,"cell_chars":16384,"cell_head_chars":4096},"cells_cut":0,"cells_raw":0,"read":"whole","date_system":"1900"}

{"sheet":"TD  Cortes de Rosas","index":0,"n_rows":746,"n_cols":33,"rows_kept":746,"cut":false,"hidden":false,"merged":[[6,31,8,32],[2,5,2,9]]}
[null,"Análisis de los Cortes de Rosas (Semana)"]
[]
[null,null,null,null,null,"Datos Generales de Configuración"]
[null,null,"Año","(Todas)",null,"Estamos en la Fila:",null,10,"Desde la Fila:",10]
[null,null,"Trimestre","(Todas)",null,"Valor Máximo Cantidad:",null,{"$f":"MAX(Rosas_Cortadas_Cantidad)","v":85116},"Hasta la Fila:",{"$f":"COUNTA(Rosas_Corte_Semanas)+J4-1","v":22}]
[null,null,"Mes","(Todas)",null,"Nº de registros",null,{"$f":"COUNTA(Rosas_Corte_Semanas)","v":13}]
[null,null,null,null,null,null,null,null,null,null,null,null,null,null,null,null,null,null,null,null,null,null,null,null,null,null,null,null,null,null,null,"Análisis de Coyuntural Semanal"]
[null,null,null,"Valores"]
[null,null,"Semana","Cant. Rosas","Total Horas","Ratio/Hora","T.Jornales","Comentario","Serie1","Serie 2","Serie 3","Diferencia"]
[null,null,"3",42951,97.25,441.65552699228795,44,{"$f":"IFERROR(VLOOKUP(C10,$AF$11:$AG$31,2,FALSE),\"\")","v":"Estabilidad en los Precios"},{"$f":"IF(H10=\"\",\"\",D10)","v":42951},{"$f":"IF(H10=\"\",\"\",IF($H$4=ROW(),I10,#N/A))","v":42951},{"$f":"IF(H10=\"\",\"\",IF($H$4=ROW(),$H$5+10,#N/A))","v":85126},{"$f":"IF(H10=\"\",\"\",K10-J10)","v":42175},null,null,null,null,null,null,null,null,null,null,null,null,null,null,null,null,null,null,null,"Semana y Comentario"]
[null,null,"4",24795,48.25,513.88601036269426,20,"Previsión de Cambio de Tendencia",{"$f":"IF(H11=\"\",\"\",D11)","v":24795},{"$f":"IF(H11=\"\",\"\",IF($H$4=ROW(),I11,#N/A))","v":{"$error":"#N/A"}},{"$f":"IF(H11=\"\",\"\",IF($H$4=ROW(),$H$5+10,#N/A))","v":{"$error":"#N/A"}},{"$f":"IF(H11=\"\",\"\",K11-J11)","v":{"$error":"#N/A"}},null,null,null,null,null,null,null,null,null,null,null,null,null,null,null,null,null,null,null,"1","Precios Medios al alza"]
[null,null,"43",9151,20.5,446.39024390243901,5,"Nada destacable Datos Incorrectos",9151,{"$error":"#N/A"},{"$error":"#N/A"},{"$error":"#N/A"},null,null,null,null,null,null,null,null,null,null,null,null,null,null,null,null,null,null,null,"2","Tendencia Bajista"]
[null,null,"44",66549,90.8,732.91850220264314,19,"Indefinición en los mercados",66549,{"$error":"#N/A"},{"$error":"#N/A"},{"$error":"#N/A"},null,null,null,null,null,null,null,null,null,null,null,null,null,null,null,null,null,null,null,"3","Estabilidad en los Precios"]
[null,null,"45",85116,137,621.28467153284669,34,"Huelga en el transporte",85116,{"$error":"#N/A"},{"$error":"#N/A"},{"$error":"#N/A"},null,null,null,null,null,null,null,null,null,null,null,null,null,null,null,null,null,null,null,"4","Previsión de Cambio de Tendencia"]
[null,null,"46",74846,126.25,592.83960396039606,40,"Incremento de Precio",74846,{"$error":"#N/A"},{"$error":"#N/A"},{"$f":"IF(H15=\"\",\"\",K15-J15)","v":{"$error":"#N/A"}},null,null,null,null,null,null,null,null,null,null,null,null,null,null,null,null,null,null,null,"43","Nada destacable Datos Incorrectos"]
[null,null,"47",59489,106.15,560.42392840320304,43,{"$f":"IFERROR(VLOOKUP(C16,$AF$11:$AG$31,2,FALSE),\"\")","v":"Aumento de la Demanda"},59489,{"$error":"#N/A"},{"$error":"#N/A"},{"$error":"#N/A"},null,null,null,null,null,null,null,null,null,null,null,null,null,null,null,null,null,null,null,"44","Indefinición en los mercados"]
[null,null,"48",54898,99.5,551.7386934673367,38,"Saturación de los Mercados",54898,{"$error":"#N/A"},{"$error":"#N/A"},{"$error":"#N/A"},null,null,null,null,null,null,null,null,null,null,null,null,null,null,null,null,null,null,null,"45","Huelga en el transporte"]
[null,null,"49",58537,108,542.00925925925924,45,"Bajan Precio",58537,{"$error":"#N/A"},{"$error":"#N/A"},{"$error":"#N/A"},null,null,null,null,null,null,null,null,null,null,null,null,null,null,null,null,null,null,null,"46","Incremento de Precio"]
[null,null,"50",56493,204.25,276.58751529987762,30,{"$f":"IFERROR(VLOOKUP(C19,$AF$11:$AG$31,2,FALSE),\"\")","v":"Leve recuperación de Precios"},56493,{"$error":"#N/A"},{"$error":"#N/A"},{"$error":"#N/A"},null,null,null,null,null,null,null,null,null,null,null,null,null,null,null,null,null,null,null,"47","Aumento de la Demanda"]
[null,null,"51",61959,116.75,530.69807280513919,39,"Alta Volatilidad en Precios",61959,{"$error":"#N/A"},{"$error":"#N/A"},{"$error":"#N/A"},null,null,null,null,null,null,null,null,null,null,null,null,null,null,null,null,null,null,null,"48","Saturación de los Mercados"]
[null,null,"52",63226,99.5,635.43718592964819,21,"Se confirman ascenso en Precios",63226,{"$error":"#N/A"},{"$error":"#N/A"},{"$error":"#N/A"},null,null,null,null,null,null,null,null,null,null,null,null,null,null,null,null,null,null,null,"49","Bajan Precio"]
[null,null,"53",46603,72.5,642.79999999999995,18,"Optimo de Precios en Holanda",46603,{"$error":"#N/A"},{"$error":"#N/A"},{"$error":"#N/A"},null,null,null,null,null,null,null,null,null,null,null,null,null,null,null,null,null,null,null,"50","Leve recuperación de Precios"]
[null,null,"Total general",704613,1326.6999999999998,531.10198236225233,396,"","","","","",null,null,null,null,null,null,null,null,null,null,null,null,null,null,null,null,null,null,null,"51","Alta Volatilidad en Precios"]
[null,null,null,null,null,null,null,"","","","","",null,null,null,null,null,null,null,null,null,null,null,null,null,null,null,null,null,null,null,"52","Se confirman ascenso en Precios"]
[null,null,null,null,null,null,null,"","","","","",null,null,null,null,null,null,null,null,null,null,null,null,null,null,null,null,null,null,null,"53","Optimo de Precios en Holanda"]
[null,null,null,null,null,null,null,"","","","",""]
[null,null,null,null,null,null,null,"","","","",""]
[null,null,null,null,null,null,null,"","","","",""]
[null,null,null,null,null,null,null,"","","","",""]
[null,null,null,null,null,null,null,"","","","",""]
[null,null,null,null,null,null,null,"","","","",""]
[null,null,null,null,null,null,null,null,"","","",""]
[null,null,null,null,null,null,null,null,"","","",""]
[null,null,null,null,null,null,null,null,"","","",""]
[null,null,null,null,null,null,null,null,"","","",""]
[null,null,null,null,null,null,null,null,"","","",""]
[null,null,null,null,null,null,null,null,"","","",""]
[null,null,null,null,null,null,null,null,"","","",""]
[null,null,null,null,null,null,null,null,null,"",{"$f":"IF(H39=\"\",\"\",IF($H$4=ROW(),H34+10,#N/A))","v":""},""]
[null,null,null,null,null,null,null,null,null,"","",""]
[null,null,null,null,null,null,null,null,null,"","",""]
[null,null,null,null,null,null,null,null,null,"","",""]
[null,null,null,null,null,null,null,null,null,"","",""]
[null,null,null,null,null,null,null,null,null,"","",""]
[null,null,null,null,null,null,null,null,null,"","",""]
[null,null,null,null,null,null,null,null,null,"","",""]
[null,null,null,null,null,null,null,null,null,"","",""]
[null,null,null,null,null,null,null,null,null,"","",""]
[null,null,null,null,null,null,null,null,null,"","",""]
[null,null,null,null,null,null,null,null,null,"","",""]
[null,null,null,null,null,null,null,null,null,"","",""]
[null,null,null,null,null,null,null,null,null,"","",""]
[null,null,null,null,null,null,null,null,null,"","",""]
[null,null,null,null,null,null,null,null,null,"","",""]
[null,null,null,null,null,null,null,null,null,"","",""]
[null,null,null,null,null,null,null,null,null,"","",""]
[null,null,null,null,null,null,null,null,null,"","",""]
[null,null,null,null,null,null,null,null,null,"","",""]
[null,null,null,null,null,null,null,null,null,"","",""]
[null,null,null,null,null,null,null,null,null,"","",""]
[null,null,null,null,null,null,null,null,null,"","",""]
[null,null,null,null,null,null,null,null,null,"","",""]
[null,null,null,null,null,null,null,null,null,"","",""]
[null,null,null,null,null,null,null,null,null,"","",""]
[null,null,null,null,null,null,null,null,null,"","",""]
[null,null,null,null,null,null,null,null,null,"","",""]
[null,null,null,null,null,null,null,null,null,"","",""]
[null,null,null,null,null,null,null,null,null,"","",""]
[null,null,null,null,null,null,null,null,null,"","",""]
[null,null,null,null,null,null,null,null,null,"","",""]
[null,null,null,null,null,null,null,null,null,"","",""]
[null,null,null,null,null,null,null,null,null,"","",""]
[null,null,null,null,null,null,null,null,null,"","",""]
[null,null,null,null,null,null,null,null,null,"","",""]
[null,null,null,null,null,null,null,null,null,{"$f":"IF(H75=\"\",\"\",IF($H$4=ROW(),I75,#N/A))","v":""},{"$f":"IF(H75=\"\",\"\",IF($H$4=ROW(),H70+10,#N/A))","v":""},{"$f":"IF(H75=\"\",\"\",K75-J75)","v":""}]
[null,null,null,null,null,null,null,null,null,"","",""]
[null,null,null,null,null,null,null,null,null,"","",""]
[null,null,null,null,null,null,null,null,null,"","",""]
[null,null,null,null,null,null,null,null,null,"","",""]
[null,null,null,null,null,null,null,null,null,"","",""]
[null,null,null,null,null,null,null,null,null,"","",""]
[null,null,null,null,null,null,null,null,null,"","",""]
[null,null,null,null,null,null,null,null,null,"","",""]
[null,null,null,null,null,null,null,null,null,"","",""]
[null,null,null,null,null,null,null,null,null,"","",""]
[null,null,null,null,null,null,null,null,null,"","",""]
[null,null,null,null,null,null,null,null,null,"","",""]
[null,null,null,null,null,null,null,null,null,"","",""]
[null,null,null,null,null,null,null,null,null,"","",""]
[null,null,null,null,null,null,null,null,null,"","",""]
[null,null,null,null,null,null,null,null,null,"","",""]
[null,null,null,null,null,null,null,null,null,"","",""]
[null,null,null,null,null,null,null,null,null,"","",""]
[null,null,null,null,null,null,null,null,null,"","",""]
[null,null,null,null,null,null,null,null,null,"","",""]
[null,null,null,null,null,null,null,null,null,"","",""]
[null,null,null,null,null,null,null,null,null,"","",""]
[null,null,null,null,null,null,null,null,null,"","",""]
[null,null,null,null,null,null,null,null,null,"","",""]
[null,null,null,null,null,null,null,null,null,"","",""]
[null,null,null,null,null,null,null,null,null,"","",""]
[null,null,null,null,null,null,null,null,null,"","",""]
[null,null,null,null,null,null,null,null,null,"","",""]
[null,null,null,null,null,null,null,null,null,"","",""]
[null,null,null,null,null,null,null,null,null,"","",""]
[null,null,null,null,null,null,null,null,null,"","",""]
[null,null,null,null,null,null,null,null,null,"","",""]
[null,null,null,null,null,null,null,null,null,"","",""]
[null,null,null,null,null,null,null,null,null,"","",""]
[null,null,null,null,null,null,null,null,null,"","",""]
[null,null,null,null,null,null,null,null,null,"","",""]
[null,null,null,null,null,null,null,null,null,"","",""]
[null,null,null,null,null,null,null,null,null,"","",""]
[null,null,null,null,null,null,null,null,null,"","",""]
[null,null,null,null,null,null,null,null,null,"","",""]
[null,null,null,null,null,null,null,null,null,"","",""]
[null,null,null,null,null,null,null,null,null,"","",""]
[null,null,null,null,null,null,null,null,null,"","",""]
[null,null,null,null,null,null,null,null,null,"","",""]
[null,null,null,null,null,null,null,null,null,"","",""]
[null,null,null,null,null,null,null,null,null,"","",""]
[null,null,null,null,null,null,null,null,null,"","",""]
[null,null,null,null,null,null,null,null,null,"","",""]
[null,null,null,null,null,null,null,null,null,"","",""]
[null,null,null,null,null,null,null,null,null,"","",""]
[null,null,null,null,null,null,null,null,null,"","",""]
[null,null,null,null,null,null,null,null,null,"","",""]
[null,null,null,null,null,null,null,null,null,"","",""]
[null,null,null,null,null,null,null,null,null,"","",""]
[null,null,null,null,null,null,null,null,null,"","",""]
[null,null,null,null,null,null,null,null,null,"","",""]
[null,null,null,null,null,null,null,null,null,"","",""]
[null,null,null,null,null,null,null,null,null,"","",""]
[null,null,null,null,null,null,null,null,null,"","",""]
[null,null,null,null,null,null,null,null,null,"","",""]
[null,null,null,null,null,null,null,null,null,"","",""]
[null,null,null,null,null,null,null,null,null,"","",""]
[null,null,null,null,null,null,null,null,null,"","",""]
[null,null,null,null,null,null,null,null,null,{"$f":"IF(H139=\"\",\"\",IF($H$4=ROW(),I139,#N/A))","v":""},{"$f":"IF(H139=\"\",\"\",IF($H$4=ROW(),H134+10,#N/A))","v":""},{"$f":"IF(H139=\"\",\"\",K139-J139)","v":""}]
[null,null,null,null,null,null,null,null,null,"","",""]
[null,null,null,null,null,null,null,null,null,"","",""]
[null,null,null,null,null,null,null,null,null,"","",""]
[null,null,null,null,null,null,null,null,null,"","",""]
[null,null,null,null,null,null,null,null,null,"","",""]
[null,null,null,null,null,null,null,null,null,"","",""]
[null,null,null,null,null,null,null,null,null,"","",""]
[null,null,null,null,null,null,null,null,null,"","",""]
[null,null,null,null,null,null,null,null,null,"","",""]
[null,null,null,null,null,null,null,null,null,"","",""]
[null,null,null,null,null,null,null,null,null,"","",""]
[null,null,null,null,null,null,null,null,null,"","",""]
[null,null,null,null,null,null,null,null,null,"","",""]
[null,null,null,null,null,null,null,null,null,"","",""]
[null,null,null,null,null,null,null,null,null,"","",""]
[null,null,null,null,null,null,null,null,null,"","",""]
[null,null,null,null,null,null,null,null,null,"","",""]
[null,null,null,null,null,null,null,null,null,"","",""]
[null,null,null,null,null,null,null,null,null,"","",""]
[null,null,null,null,null,null,null,null,null,"","",""]
[null,null,null,null,null,null,null,null,null,"","",""]
[null,null,null,null,null,null,null,null,null,"","",""]
[null,null,null,null,null,null,null,null,null,"","",""]
[null,null,null,null,null,null,null,null,null,"","",""]
[null,null,null,null,null,null,null,null,null,"","",""]
[null,null,null,null,null,null,null,null,null,"","",""]
[null,null,null,null,null,null,null,null,null,"","",""]
[null,null,null,null,null,null,null,null,null,"","",""]
[null,null,null,null,null,null,null,null,null,"","",""]
[null,null,null,null,null,null,null,null,null,"","",""]
[null,null,null,null,null,null,null,null,null,"","",""]
[null,null,null,null,null,null,null,null,null,"","",""]
[null,null,null,null,null,null,null,null,null,"","",""]
[null,null,null,null,null,null,null,null,null,"","",""]
[null,null,null,null,null,null,null,null,null,"","",""]
[null,null,null,null,null,null,null,null,null,"","",""]
[null,null,null,null,null,null,null,null,null,"","",""]
[null,null,null,null,null,null,null,null,null,"","",""]
[null,null,null,null,null,null,null,null,null,"","",""]
[null,null,null,null,null,null,null,null,null,"","",""]
[null,null,null,null,null,null,null,null,null,"","",""]
[null,null,null,null,null,null,null,null,null,"","",""]
[null,null,null,null,null,null,null,null,null,"","",""]
[null,null,null,null,null,null,null,null,null,"","",""]
[null,null,null,null,null,null,null,null,null,"","",""]
[null,null,null,null,null,null,null,null,null,"","",""]
[null,null,null,null,null,null,null,null,null,"","",""]
[null,null,null,null,null,null,null,null,null,"","",""]
[null,null,null,null,null,null,null,null,null,"","",""]
[null,null,null,null,null,null,null,null,null,"","",""]
[null,null,null,null,null,null,null,null,null,"","",""]
[null,null,null,null,null,null,null,null,null,"","",""]
[null,null,null,null,null,null,null,null,null,"","",""]
[null,null,null,null,null,null,null,null,null,"","",""]
[null,null,null,null,null,null,null,null,null,"","",""]
[null,null,null,null,null,null,null,null,null,"","",""]
[null,null,null,null,null,null,null,null,null,"","",""]
[null,null,null,null,null,null,null,null,null,"","",""]
[null,null,null,null,null,null,null,null,null,"","",""]
[null,null,null,null,null,null,null,null,null,"","",""]
[null,null,null,null,null,null,null,null,null,"","",""]
[null,null,null,null,null,null,null,null,null,"","",""]
[null,null,null,null,null,null,null,null,null,"","",""]
[null,null,null,null,null,null,null,null,null,{"$f":"IF(H203=\"\",\"\",IF($H$4=ROW(),I203,#N/A))","v":""},{"$f":"IF(H203=\"\",\"\",IF($H$4=ROW(),H198+10,#N/A))","v":""},{"$f":"IF(H203=\"\",\"\",K203-J203)","v":""}]
[null,null,null,null,null,null,null,null,null,"","",""]
[null,null,null,null,null,null,null,null,null,"","",""]
[null,null,null,null,null,null,null,null,null,"","",""]
[null,null,null,null,null,null,null,null,null,"","",""]
[null,null,null,null,null,null,null,null,null,"","",""]
[null,null,null,null,null,null,null,null,null,"","",""]
[null,null,null,null,null,null,null,null,null,"","",""]
[null,null,null,null,null,null,null,null,null,"","",""]
[null,null,null,null,null,null,null,null,null,"","",""]
[null,null,null,null,null,null,null,null,null,"","",""]
[null,null,null,null,null,null,null,null,null,"","",""]
[null,null,null,null,null,null,null,null,null,"","",""]
[null,null,null,null,null,null,null,null,null,"","",""]
[null,null,null,null,null,null,null,null,null,"","",""]
[null,null,null,null,null,null,null,null,null,"","",""]
[null,null,null,null,null,null,null,null,null,null,"",""]
[null,null,null,null,null,null,null,null,null,null,"",""]
[null,null,null,null,null,null,null,null,null,null,"",""]
[null,null,null,null,null,null,null,null,null,null,"",""]
[null,null,null,null,null,null,null,null,null,null,"",""]
[null,null,null,null,null,null,null,null,null,null,"",""]
[null,null,null,null,null,null,null,null,null,null,"",""]
[null,null,null,null,null,null,null,null,null,null,"",""]
[null,null,null,null,null,null,null,null,null,null,"",""]
[null,null,null,null,null,null,null,null,null,null,"",""]
[null,null,null,null,null,null,null,null,null,null,"",""]
[null,null,null,null,null,null,null,null,null,null,"",""]
[null,null,null,null,null,null,null,null,null,null,"",""]
[null,null,null,null,null,null,null,null,null,null,"",""]
[null,null,null,null,null,null,null,null,null,null,"",""]
[null,null,null,null,null,null,null,null,null,null,"",""]
[null,null,null,null,null,null,null,null,null,null,"",""]
[null,null,null,null,null,null,null,null,null,null,"",""]
[null,null,null,null,null,null,null,null,null,null,"",""]
[null,null,null,null,null,null,null,null,null,null,"",""]
[null,null,null,null,null,null,null,null,null,null,"",""]
[null,null,null,null,null,null,null,null,null,null,"",""]
[null,null,null,null,null,null,null,null,null,null,"",""]
[null,null,null,null,null,null,null,null,null,null,"",""]
[null,null,null,null,null,null,null,null,null,null,"",""]
[null,null,null,null,null,null,null,null,null,null,"",""]
[null,null,null,null,null,null,null,null,null,null,"",""]
[null,null,null,null,null,null,null,null,null,null,"",""]
[null,null,null,null,null,null,null,null,null,null,"",""]
[null,null,null,null,null,null,null,null,null,null,"",""]
[null,null,null,null,null,null,null,null,null,null,"",""]
[null,null,null,null,null,null,null,null,null,null,"",""]
[null,null,null,null,null,null,null,null,null,null,"",""]
[null,null,null,null,null,null,null,null,null,null,"",""]
[null,null,null,null,null,null,null,null,null,null,"",""]
[null,null,null,null,null,null,null,null,null,null,"",""]
[null,null,null,null,null,null,null,null,null,null,"",""]
[null,null,null,null,null,null,null,null,null,null,"",""]
[null,null,null,null,null,null,null,null,null,null,"",""]
[null,null,null,null,null,null,null,null,null,null,"",""]
[null,null,null,null,null,null,null,null,null,null,"",""]
[null,null,null,null,null,null,null,null,null,null,"",""]
[null,null,null,null,null,null,null,null,null,null,"",""]
[null,null,null,null,null,null,null,null,null,null,"",""]
[null,null,null,null,null,null,null,null,null,null,"",""]
[null,null,null,null,null,null,null,null,null,null,"",""]
[null,null,null,null,null,null,null,null,null,null,"",""]
[null,null,null,null,null,null,null,null,null,null,"",""]
[null,null,null,null,null,null,null,null,null,null,{"$f":"IF(H267=\"\",\"\",IF($H$4=ROW(),H262+10,#N/A))","v":""},{"$f":"IF(H267=\"\",\"\",K267-J267)","v":""}]
[null,null,null,null,null,null,null,null,null,null,"",""]
[null,null,null,null,null,null,null,null,null,null,"",""]
[null,null,null,null,null,null,null,null,null,null,"",""]
[null,null,null,null,null,null,null,null,null,null,"",""]
[null,null,null,null,null,null,null,null,null,null,"",""]
[null,null,null,null,null,null,null,null,null,null,"",""]
[null,null,null,null,null,null,null,null,null,null,"",""]
[null,null,null,null,null,null,null,null,null,null,"",""]
[null,null,null,null,null,null,null,null,null,null,"",""]
[null,null,null,null,null,null,null,null,null,null,"",""]
[null,null,null,null,null,null,null,null,null,null,"",""]
[null,null,null,null,null,null,null,null,null,null,"",""]
[null,null,null,null,null,null,null,null,null,null,"",""]
[null,null,null,null,null,null,null,null,null,null,"",""]
[null,null,null,null,null,null,null,null,null,null,"",""]
[null,null,null,null,null,null,null,null,null,null,"",""]
[null,null,null,null,null,null,null,null,null,null,"",""]
[null,null,null,null,null,null,null,null,null,null,"",""]
[null,null,null,null,null,null,null,null,null,null,"",""]
[null,null,null,null,null,null,null,null,null,null,"",""]
[null,null,null,null,null,null,null,null,null,null,"",""]
[null,null,null,null,null,null,null,null,null,null,"",""]
[null,null,null,null,null,null,null,null,null,null,"",""]
[null,null,null,null,null,null,null,null,null,null,"",""]
[null,null,null,null,null,null,null,null,null,null,"",""]
[null,null,null,null,null,null,null,null,null,null,"",""]
[null,null,null,null,null,null,null,null,null,null,"",""]
[null,null,null,null,null,null,null,null,null,null,"",""]
[null,null,null,null,null,null,null,null,null,null,"",""]
[null,null,null,null,null,null,null,null,null,null,"",""]
[null,null,null,null,null,null,null,null,null,null,"",""]
[null,null,null,null,null,null,null,null,null,null,"",""]
[null,null,null,null,null,null,null,null,null,null,"",""]
[null,null,null,null,null,null,null,null,null,null,"",""]
[null,null,null,null,null,null,null,null,null,null,"",""]
[null,null,null,null,null,null,null,null,null,null,"",""]
[null,null,null,null,null,null,null,null,null,null,"",""]
[null,null,null,null,null,null,null,null,null,null,"",""]
[null,null,null,null,null,null,null,null,null,null,"",""]
[null,null,null,null,null,null,null,null,null,null,"",""]
[null,null,null,null,null,null,null,null,null,null,"",""]
[null,null,null,null,null,null,null,null,null,null,"",""]
[null,null,null,null,null,null,null,null,null,null,"",""]
[null,null,null,null,null,null,null,null,null,null,"",""]
[null,null,null,null,null,null,null,null,null,null,"",""]
[null,null,null,null,null,null,null,null,null,null,"",""]
[null,null,null,null,null,null,null,null,null,null,"",""]
[null,null,null,null,null,null,null,null,null,null,"",""]
[null,null,null,null,null,null,null,null,null,null,"",""]
[null,null,null,null,null,null,null,null,null,null,"",""]
[null,null,null,null,null,null,null,null,null,null,"",""]
[null,null,null,null,null,null,null,null,null,null,"",""]
[null,null,null,null,null,null,null,null,null,null,"",""]
[null,null,null,null,null,null,null,null,null,null,"",""]
[null,null,null,null,null,null,null,null,null,null,"",""]
[null,null,null,null,null,null,null,null,null,null,"",""]
[null,null,null,null,null,null,null,null,null,null,"",""]
[null,null,null,null,null,null,null,null,null,null,"",""]
[null,null,null,null,null,null,null,null,null,null,"",""]
[null,null,null,null,null,null,null,null,null,null,"",""]
[null,null,null,null,null,null,null,null,null,null,"",""]
[null,null,null,null,null,null,null,null,null,null,"",""]
[null,null,null,null,null,null,null,null,null,null,"",""]
[null,null,null,null,null,null,null,null,null,null,{"$f":"IF(H331=\"\",\"\",IF($H$4=ROW(),H326+10,#N/A))","v":""},{"$f":"IF(H331=\"\",\"\",K331-J331)","v":""}]
[null,null,null,null,null,null,null,null,null,null,"",""]
[null,null,null,null,null,null,null,null,null,null,"",""]
[null,null,null,null,null,null,null,null,null,null,"",""]
[null,null,null,null,null,null,null,null,null,null,"",""]
[null,null,null,null,null,null,null,null,null,null,"",""]
[null,null,null,null,null,null,null,null,null,null,"",""]
[null,null,null,null,null,null,null,null,null,null,"",""]
[null,null,null,null,null,null,null,null,null,null,"",""]
[null,null,null,null,null,null,null,null,null,null,"",""]
[null,null,null,null,null,null,null,null,null,null,"",""]
[null,null,null,null,null,null,null,null,null,null,"",""]
[null,null,null,null,null,null,null,null,null,null,"",""]
[null,null,null,null,null,null,null,null,null,null,"",""]
[null,null,null,null,null,null,null,null,null,null,"",""]
[null,null,null,null,null,null,null,null,null,null,"",""]
[null,null,null,null,null,null,null,null,null,null,"",""]
[null,null,null,null,null,null,null,null,null,null,"",""]
[null,null,null,null,null,null,null,null,null,null,"",""]
[null,null,null,null,null,null,null,null,null,null,""]
[null,null,null,null,null,null,null,null,null,null,""]
[null,null,null,null,null,null,null,null,null,null,""]
[null,null,null,null,null,null,null,null,null,null,""]
[null,null,null,null,null,null,null,null,null,null,""]
[null,null,null,null,null,null,null,null,null,null,""]
[null,null,null,null,null,null,null,null,null,null,""]
[null,null,null,null,null,null,null,null,null,null,""]
[null,null,null,null,null,null,null,null,null,null,""]
[null,null,null,null,null,null,null,null,null,null,""]
[null,null,null,null,null,null,null,null,null,null,""]
[null,null,null,null,null,null,null,null,null,null,""]
[null,null,null,null,null,null,null,null,null,null,""]
[null,null,null,null,null,null,null,null,null,null,""]
[null,null,null,null,null,null,null,null,null,null,""]
[null,null,null,null,null,null,null,null,null,null,""]
[null,null,null,null,null,null,null,null,null,null,""]
[null,null,null,null,null,null,null,null,null,null,""]
[null,null,null,null,null,null,null,null,null,null,""]
[null,null,null,null,null,null,null,null,null,null,""]
[null,null,null,null,null,null,null,null,null,null,""]
[null,null,null,null,null,null,null,null,null,null,""]
[null,null,null,null,null,null,null,null,null,null,""]
[null,null,null,null,null,null,null,null,null,null,""]
[null,null,null,null,null,null,null,null,null,null,""]
[null,null,null,null,null,null,null,null,null,null,""]
[null,null,null,null,null,null,null,null,null,null,""]
[null,null,null,null,null,null,null,null,null,null,""]
[null,null,null,null,null,null,null,null,null,null,""]
[null,null,null,null,null,null,null,null,null,null,""]
[null,null,null,null,null,null,null,null,null,null,""]
[null,null,null,null,null,null,null,null,null,null,""]
[null,null,null,null,null,null,null,null,null,null,""]
[null,null,null,null,null,null,null,null,null,null,""]
[null,null,null,null,null,null,null,null,null,null,""]
[null,null,null,null,null,null,null,null,null,null,""]
[null,null,null,null,null,null,null,null,null,null,""]
[null,null,null,null,null,null,null,null,null,null,""]
[null,null,null,null,null,null,null,null,null,null,""]
[null,null,null,null,null,null,null,null,null,null,""]
[null,null,null,null,null,null,null,null,null,null,""]
[null,null,null,null,null,null,null,null,null,null,""]
[null,null,null,null,null,null,null,null,null,null,""]
[null,null,null,null,null,null,null,null,null,null,""]
[null,null,null,null,null,null,null,null,null,null,""]
[null,null,null,null,null,null,null,null,null,null,{"$f":"IF(H395=\"\",\"\",IF($H$4=ROW(),H390+10,#N/A))","v":""}]
[null,null,null,null,null,null,null,null,null,null,""]
[null,null,null,null,null,null,null,null,null,null,""]
[null,null,null,null,null,null,null,null,null,null,""]
[null,null,null,null,null,null,null,null,null,null,""]
[null,null,null,null,null,null,null,null,null,null,""]
[null,null,null,null,null,null,null,null,null,null,""]
[null,null,null,null,null,null,null,null,null,null,""]
[null,null,null,null,null,null,null,null,null,null,""]
[null,null,null,null,null,null,null,null,null,null,""]
[null,null,null,null,null,null,null,null,null,null,""]
[null,null,null,null,null,null,null,null,null,null,""]
[null,null,null,null,null,null,null,null,null,null,""]
[null,null,null,null,null,null,null,null,null,null,""]
[null,null,null,null,null,null,null,null,null,null,""]
[null,null,null,null,null,null,null,null,null,null,""]
[null,null,null,null,null,null,null,null,null,null,""]
[null,null,null,null,null,null,null,null,null,null,""]
[null,null,null,null,null,null,null,null,null,null,""]
[null,null,null,null,null,null,null,null,null,null,""]
[null,null,null,null,null,null,null,null,null,null,""]
[null,null,null,null,null,null,null,null,null,null,""]
[null,null,null,null,null,null,null,null,null,null,""]
[null,null,null,null,null,null,null,null,null,null,""]
[null,null,null,null,null,null,null,null,null,null,""]
[null,null,null,null,null,null,null,null,null,null,""]
[null,null,null,null,null,null,null,null,null,null,""]
[null,null,null,null,null,null,null,null,null,null,""]
[null,null,null,null,null,null,null,null,null,null,""]
[null,null,null,null,null,null,null,null,null,null,""]
[null,null,null,null,null,null,null,null,null,null,""]
[null,null,null,null,null,null,null,null,null,null,""]
[null,null,null,null,null,null,null,null,null,null,""]
[null,null,null,null,null,null,null,null,null,null,""]
[null,null,null,null,null,null,null,null,null,null,""]
[null,null,null,null,null,null,null,null,null,null,""]
[null,null,null,null,null,null,null,null,null,null,""]
[null,null,null,null,null,null,null,null,null,null,""]
[null,null,null,null,null,null,null,null,null,null,""]
[null,null,null,null,null,null,null,null,null,null,""]
[null,null,null,null,null,null,null,null,null,null,""]
[null,null,null,null,null,null,null,null,null,null,""]
[null,null,null,null,null,null,null,null,null,null,""]
[null,null,null,null,null,null,null,null,null,null,""]
[null,null,null,null,null,null,null,null,null,null,""]
[null,null,null,null,null,null,null,null,null,null,""]
[null,null,null,null,null,null,null,null,null,null,""]
[null,null,null,null,null,null,null,null,null,null,""]
[null,null,null,null,null,null,null,null,null,null,""]
[null,null,null,null,null,null,null,null,null,null,""]
[null,null,null,null,null,null,null,null,null,null,""]
[null,null,null,null,null,null,null,null,null,null,""]
[null,null,null,null,null,null,null,null,null,null,""]
[null,null,null,null,null,null,null,null,null,null,""]
[null,null,null,null,null,null,null,null,null,null,""]
[null,null,null,null,null,null,null,null,null,null,""]
[null,null,null,null,null,null,null,null,null,null,""]
[null,null,null,null,null,null,null,null,null,null,""]
[null,null,null,null,null,null,null,null,null,null,""]
[null,null,null,null,null,null,null,null,null,null,""]
[null,null,null,null,null,null,null,null,null,null,""]
[null,null,null,null,null,null,null,null,null,null,""]
[null,null,null,null,null,null,null,null,null,null,""]
[null,null,null,null,null,null,null,null,null,null,""]
[null,null,null,null,null,null,null,null,null,null,{"$f":"IF(H459=\"\",\"\",IF($H$4=ROW(),H454+10,#N/A))","v":""}]
[null,null,null,null,null,null,null,null,null,null,""]
[null,null,null,null,null,null,null,null,null,null,""]
[null,null,null,null,null,null,null,null,null,null,""]
[null,null,null,null,null,null,null,null,null,null,""]
[null,null,null,null,null,null,null,null,null,null,""]
[null,null,null,null,null,null,null,null,null,null,""]
[null,null,null,null,null,null,null,null,null,null,""]
[null,null,null,null,null,null,null,null,null,null,""]
[null,null,null,null,null,null,null,null,null,null,""]
[null,null,null,null,null,null,null,null,null,null,""]
[null,null,null,null,null,null,null,null,null,null,""]
[null,null,null,null,null,null,null,null,null,null,""]
[null,null,null,null,null,null,null,null,null,null,""]
[null,null,null,null,null,null,null,null,null,null,""]
[null,null,null,null,null,null,null,null,null,null,""]
[null,null,null,null,null,null,null,null,null,null,""]
[null,null,null,null,null,null,null,null,null,null,""]
[null,null,null,null,null,null,null,null,null,null,""]
[null,null,null,null,null,null,null,null,null,null,""]
[null,null,null,null,null,null,null,null,null,null,""]
[null,null,null,null,null,null,null,null,null,null,""]
[null,null,null,null,null,null,null,null,null,null,""]
[null,null,null,null,null,null,null,null,null,null,""]
[null,null,null,null,null,null,null,null,null,null,""]
[null,null,null,null,null,null,null,null,null,null,""]
[null,null,null,null,null,null,null,null,null,null,""]
[null,null,null,null,null,null,null,null,null,null,""]
[null,null,null,null,null,null,null,null,null,null,""]
[null,null,null,null,null,null,null,null,null,null,""]
[null,null,null,null,null,null,null,null,null,null,""]
[null,null,null,null,null,null,null,null,null,null,""]
[null,null,null,null,null,null,null,null,null,null,""]
[null,null,null,null,null,null,null,null,null,null,""]
[null,null,null,null,null,null,null,null,null,null,""]
[null,null,null,null,null,null,null,null,null,null,""]
[null,null,null,null,null,null,null,null,null,null,""]
[null,null,null,null,null,null,null,null,null,null,""]
[null,null,null,null,null,null,null,null,null,null,""]
[null,null,null,null,null,null,null,null,null,null,""]
[null,null,null,null,null,null,null,null,null,null,""]
[null,null,null,null,null,null,null,null,null,null,""]
[null,null,null,null,null,null,null,null,null,null,""]
[null,null,null,null,null,null,null,null,null,null,""]
[null,null,null,null,null,null,null,null,null,null,""]
[null,null,null,null,null,null,null,null,null,null,""]
[null,null,null,null,null,null,null,null,null,null,""]
[null,null,null,null,null,null,null,null,null,null,""]
[null,null,null,null,null,null,null,null,null,null,""]
[null,null,null,null,null,null,null,null,null,null,""]
[null,null,null,null,null,null,null,null,null,null,""]
[null,null,null,null,null,null,null,null,null,null,""]
[null,null,null,null,null,null,null,null,null,null,""]
[null,null,null,null,null,null,null,null,null,null,""]
[null,null,null,null,null,null,null,null,null,null,""]
[null,null,null,null,null,null,null,null,null,null,""]
[null,null,null,null,null,null,null,null,null,null,""]
[null,null,null,null,null,null,null,null,null,null,""]
[null,null,null,null,null,null,null,null,null,null,""]
[null,null,null,null,null,null,null,null,null,null,""]
[null,null,null,null,null,null,null,null,null,null,""]
[null,null,null,null,null,null,null,null,null,null,""]
[null,null,null,null,null,null,null,null,null,null,""]
[null,null,null,null,null,null,null,null,null,null,""]
[null,null,null,null,null,null,null,null,null,null,{"$f":"IF(H523=\"\",\"\",IF($H$4=ROW(),H518+10,#N/A))","v":""}]
[null,null,null,null,null,null,null,null,null,null,""]
[null,null,null,null,null,null,null,null,null,null,""]
[null,null,null,null,null,null,null,null,null,null,""]
[null,null,null,null,null,null,null,null,null,null,""]
[null,null,null,null,null,null,null,null,null,null,""]
[null,null,null,null,null,null,null,null,null,null,""]
[null,null,null,null,null,null,null,null,null,null,""]
[null,null,null,null,null,null,null,null,null,null,""]
[null,null,null,null,null,null,null,null,null,null,""]
[null,null,null,null,null,null,null,null,null,null,""]
[null,null,null,null,null,null,null,null,null,null,""]
[null,null,null,null,null,null,null,null,null,null,""]
[null,null,null,null,null,null,null,null,null,null,""]
[null,null,null,null,null,null,null,null,null,null,""]
[null,null,null,null,null,null,null,null,null,null,""]
[null,null,null,null,null,null,null,null,null,null,""]
[null,null,null,null,null,null,null,null,null,null,""]
[null,null,null,null,null,null,null,null,null,null,""]
[null,null,null,null,null,null,null,null,null,null,""]
[null,null,null,null,null,null,null,null,null,null,""]
[null,null,null,null,null,null,null,null,null,null,""]
[null,null,null,null,null,null,null,null,null,null,""]
[null,null,null,null,null,null,null,null,null,null,""]
[null,null,null,null,null,null,null,null,null,null,""]
[null,null,null,null,null,null,null,null,null,null,""]
[null,null,null,null,null,null,null,null,null,null,""]
[null,null,null,null,null,null,null,null,null,null,""]
[null,null,null,null,null,null,null,null,null,null,""]
[null,null,null,null,null,null,null,null,null,null,""]
[null,null,null,null,null,null,null,null,null,null,""]
[null,null,null,null,null,null,null,null,null,null,""]
[null,null,null,null,null,null,null,null,null,null,""]
[null,null,null,null,null,null,null,null,null,null,""]
[null,null,null,null,null,null,null,null,null,null,""]
[null,null,null,null,null,null,null,null,null,null,""]
[null,null,null,null,null,null,null,null,null,null,""]
[null,null,null,null,null,null,null,null,null,null,""]
[null,null,null,null,null,null,null,null,null,null,""]
[null,null,null,null,null,null,null,null,null,null,""]
[null,null,null,null,null,null,null,null,null,null,""]
[null,null,null,null,null,null,null,null,null,null,""]
[null,null,null,null,null,null,null,null,null,null,""]
[null,null,null,null,null,null,null,null,null,null,""]
[null,null,null,null,null,null,null,null,null,null,""]
[null,null,null,null,null,null,null,null,null,null,""]
[null,null,null,null,null,null,null,null,null,null,""]
[null,null,null,null,null,null,null,null,null,null,""]
[null,null,null,null,null,null,null,null,null,null,""]
[null,null,null,null,null,null,null,null,null,null,""]
[null,null,null,null,null,null,null,null,null,null,""]
[null,null,null,null,null,null,null,null,null,null,""]
[null,null,null,null,null,null,null,null,null,null,""]
[null,null,null,null,null,null,null,null,null,null,""]
[null,null,null,null,null,null,null,null,null,null,""]
[null,null,null,null,null,null,null,null,null,null,""]
[null,null,null,null,null,null,null,null,null,null,""]
[null,null,null,null,null,null,null,null,null,null,""]
[null,null,null,null,null,null,null,null,null,null,""]
[null,null,null,null,null,null,null,null,null,null,""]
[null,null,null,null,null,null,null,null,null,null,""]
[null,null,null,null,null,null,null,null,null,null,""]
[null,null,null,null,null,null,null,null,null,null,""]
[null,null,null,null,null,null,null,null,null,null,""]
[null,null,null,null,null,null,null,null,null,null,{"$f":"IF(H587=\"\",\"\",IF($H$4=ROW(),H582+10,#N/A))","v":""}]
[null,null,null,null,null,null,null,null,null,null,""]
[null,null,null,null,null,null,null,null,null,null,""]
[null,null,null,null,null,null,null,null,null,null,""]
[null,null,null,null,null,null,null,null,null,null,""]
[null,null,null,null,null,null,null,null,null,null,""]
[null,null,null,null,null,null,null,null,null,null,""]
[null,null,null,null,null,null,null,null,null,null,""]
[null,null,null,null,null,null,null,null,null,null,""]
[null,null,null,null,null,null,null,null,null,null,""]
[null,null,null,null,null,null,null,null,null,null,""]
[null,null,null,null,null,null,null,null,null,null,""]
[null,null,null,null,null,null,null,null,null,null,""]
[null,null,null,null,null,null,null,null,null,null,""]
[null,null,null,null,null,null,null,null,null,null,""]
[null,null,null,null,null,null,null,null,null,null,""]
[null,null,null,null,null,null,null,null,null,null,""]
[null,null,null,null,null,null,null,null,null,null,""]
[null,null,null,null,null,null,null,null,null,null,""]
[null,null,null,null,null,null,null,null,null,null,""]
[null,null,null,null,null,null,null,null,null,null,""]
[null,null,null,null,null,null,null,null,null,null,""]
[null,null,null,null,null,null,null,null,null,null,""]
[null,null,null,null,null,null,null,null,null,null,""]
[null,null,null,null,null,null,null,null,null,null,""]
[null,null,null,null,null,null,null,null,null,null,""]
[null,null,null,null,null,null,null,null,null,null,""]
[null,null,null,null,null,null,null,null,null,null,""]
[null,null,null,null,null,null,null,null,null,null,""]
[null,null,null,null,null,null,null,null,null,null,""]
[null,null,null,null,null,null,null,null,null,null,""]
[null,null,null,null,null,null,null,null,null,null,""]
[null,null,null,null,null,null,null,null,null,null,""]
[null,null,null,null,null,null,null,null,null,null,""]
[null,null,null,null,null,null,null,null,null,null,""]
[null,null,null,null,null,null,null,null,null,null,""]
[null,null,null,null,null,null,null,null,null,null,""]
[null,null,null,null,null,null,null,null,null,null,""]
[null,null,null,null,null,null,null,null,null,null,""]
[null,null,null,null,null,null,null,null,null,null,""]
[null,null,null,null,null,null,null,null,null,null,""]
[null,null,null,null,null,null,null,null,null,null,""]
[null,null,null,null,null,null,null,null,null,null,""]
[null,null,null,null,null,null,null,null,null,null,""]
[null,null,null,null,null,null,null,null,null,null,""]
[null,null,null,null,null,null,null,null,null,null,""]
[null,null,null,null,null,null,null,null,null,null,""]
[null,null,null,null,null,null,null,null,null,null,""]
[null,null,null,null,null,null,null,null,null,null,""]
[null,null,null,null,null,null,null,null,null,null,""]
[null,null,null,null,null,null,null,null,null,null,""]
[null,null,null,null,null,null,null,null,null,null,""]
[null,null,null,null,null,null,null,null,null,null,""]
[null,null,null,null,null,null,null,null,null,null,""]
[null,null,null,null,null,null,null,null,null,null,""]
[null,null,null,null,null,null,null,null,null,null,""]
[null,null,null,null,null,null,null,null,null,null,""]
[null,null,null,null,null,null,null,null,null,null,""]
[null,null,null,null,null,null,null,null,null,null,""]
[null,null,null,null,null,null,null,null,null,null,""]
[null,null,null,null,null,null,null,null,null,null,""]
[null,null,null,null,null,null,null,null,null,null,""]
[null,null,null,null,null,null,null,null,null,null,""]
[null,null,null,null,null,null,null,null,null,null,""]
[null,null,null,null,null,null,null,null,null,null,{"$f":"IF(H651=\"\",\"\",IF($H$4=ROW(),H646+10,#N/A))","v":""}]
[null,null,null,null,null,null,null,null,null,null,""]
[null,null,null,null,null,null,null,null,null,null,""]
[null,null,null,null,null,null,null,null,null,null,""]
[null,null,null,null,null,null,null,null,null,null,""]
[null,null,null,null,null,null,null,null,null,null,""]
[null,null,null,null,null,null,null,null,null,null,""]
[null,null,null,null,null,null,null,null,null,null,""]
[null,null,null,null,null,null,null,null,null,null,""]
[null,null,null,null,null,null,null,null,null,null,""]
[null,null,null,null,null,null,null,null,null,null,""]
[null,null,null,null,null,null,null,null,null,null,""]
[null,null,null,null,null,null,null,null,null,null,""]
[null,null,null,null,null,null,null,null,null,null,""]
[null,null,null,null,null,null,null,null,null,null,""]
[null,null,null,null,null,null,null,null,null,null,""]
[null,null,null,null,null,null,null,null,null,null,""]
[null,null,null,null,null,null,null,null,null,null,""]
[null,null,null,null,null,null,null,null,null,null,""]
[null,null,null,null,null,null,null,null,null,null,""]
[null,null,null,null,null,null,null,null,null,null,""]
[null,null,null,null,null,null,null,null,null,null,""]
[null,null,null,null,null,null,null,null,null,null,""]
[null,null,null,null,null,null,null,null,null,null,""]
[null,null,null,null,null,null,null,null,null,null,""]
[null,null,null,null,null,null,null,null,null,null,""]
[null,null,null,null,null,null,null,null,null,null,""]
[null,null,null,null,null,null,null,null,null,null,""]
[null,null,null,null,null,null,null,null,null,null,""]
[null,null,null,null,null,null,null,null,null,null,""]
[null,null,null,null,null,null,null,null,null,null,""]
[null,null,null,null,null,null,null,null,null,null,""]
[null,null,null,null,null,null,null,null,null,null,""]
[null,null,null,null,null,null,null,null,null,null,""]
[null,null,null,null,null,null,null,null,null,null,""]
[null,null,null,null,null,null,null,null,null,null,""]
[null,null,null,null,null,null,null,null,null,null,""]
[null,null,null,null,null,null,null,null,null,null,""]
[null,null,null,null,null,null,null,null,null,null,""]
[null,null,null,null,null,null,null,null,null,null,""]
[null,null,null,null,null,null,null,null,null,null,""]
[null,null,null,null,null,null,null,null,null,null,""]
[null,null,null,null,null,null,null,null,null,null,""]
[null,null,null,null,null,null,null,null,null,null,""]
[null,null,null,null,null,null,null,null,null,null,""]
[null,null,null,null,null,null,null,null,null,null,""]
[null,null,null,null,null,null,null,null,null,null,""]
[null,null,null,null,null,null,null,null,null,null,""]
[null,null,null,null,null,null,null,null,null,null,""]
[null,null,null,null,null,null,null,null,null,null,""]
[null,null,null,null,null,null,null,null,null,null,""]
[null,null,null,null,null,null,null,null,null,null,""]
[null,null,null,null,null,null,null,null,null,null,""]
[null,null,null,null,null,null,null,null,null,null,""]
[null,null,null,null,null,null,null,null,null,null,""]
[null,null,null,null,null,null,null,null,null,null,""]
[null,null,null,null,null,null,null,null,null,null,""]
[null,null,null,null,null,null,null,null,null,null,""]
[null,null,null,null,null,null,null,null,null,null,""]
[null,null,null,null,null,null,null,null,null,null,""]
[null,null,null,null,null,null,null,null,null,null,""]
[null,null,null,null,null,null,null,null,null,null,""]
[null,null,null,null,null,null,null,null,null,null,""]
[null,null,null,null,null,null,null,null,null,null,""]
[null,null,null,null,null,null,null,null,null,null,{"$f":"IF(H715=\"\",\"\",IF($H$4=ROW(),H710+10,#N/A))","v":""}]
[null,null,null,null,null,null,null,null,null,null,""]
[null,null,null,null,null,null,null,null,null,null,""]
[null,null,null,null,null,null,null,null,null,null,""]
[null,null,null,null,null,null,null,null,null,null,""]
[null,null,null,null,null,null,null,null,null,null,""]
[null,null,null,null,null,null,null,null,null,null,""]
[null,null,null,null,null,null,null,null,null,null,""]
[null,null,null,null,null,null,null,null,null,null,""]
[null,null,null,null,null,null,null,null,null,null,""]
[null,null,null,null,null,null,null,null,null,null,""]
[null,null,null,null,null,null,null,null,null,null,""]
[null,null,null,null,null,null,null,null,null,null,""]
[null,null,null,null,null,null,null,null,null,null,""]
[null,null,null,null,null,null,null,null,null,null,""]
[null,null,null,null,null,null,null,null,null,null,""]
[null,null,null,null,null,null,null,null,null,null,""]
[null,null,null,null,null,null,null,null,null,null,""]
[null,null,null,null,null,null,null,null,null,null,""]
[null,null,null,null,null,null,null,null,null,null,""]
[null,null,null,null,null,null,null,null,null,null,""]
[null,null,null,null,null,null,null,null,null,null,""]
[null,null,null,null,null,null,null,null,null,null,""]
[null,null,null,null,null,null,null,null,null,null,""]
[null,null,null,null,null,null,null,null,null,null,""]
[null,null,null,null,null,null,null,null,null,null,""]
[null,null,null,null,null,null,null,null,null,null,""]
[null,null,null,null,null,null,null,null,null,null,""]
[null,null,null,null,null,null,null,null,null,null,""]
[null,null,null,null,null,null,null,null,null,null,""]
[null,null,null,null,null,null,null,null,null,null,""]
[null,null,null,null,null,null,null,null,null,null,""]

{"sheet":"Consulta B","index":1,"n_rows":435,"n_cols":12,"rows_kept":435,"cut":false,"hidden":false,"merged":[[0,0,0,10]]}
["Base de Datos/Consulta: B1 Cortes de Rosas Global"]
[]
["Id del parte","Año","Trimestre","Mes tres letras","Mes","Dia del año","Nombre","Numero de Trabajador","Tcantidad","Ratio Corte/Hora","Thras","Semana del Año"]
[656,2010,"1","ene","enero","2","Ana Maria",35,1418,515.63636363636363,2.75,"1"]
[661,2010,"1","ene","enero","2","Meme Mº Remedios",34,1897,689.81818181818187,2.75,"1"]
[662,2010,"1","ene","enero","2","Danuta",22,1833,488.8,3.75,"1"]
[663,2010,"1","ene","enero","2","Consolación",17,1589,488.92307692307691,3.25,"1"]
[665,2010,"1","ene","enero","2","Anna",10,1182,429.81818181818181,2.75,"1"]
[589,2010,"1","ene","enero","8","Begoña",21,473,270.28571428571428,1.75,"2"]
[591,2010,"1","ene","enero","8","Anna",10,229,305.33333333333331,0.75,"2"]
[592,2010,"1","ene","enero","8","Arsenia",2,669,382.28571428571428,1.75,"2"]
[595,2010,"1","ene","enero","8","Antonia",1,606,404,1.5,"2"]
[597,2010,"1","ene","enero","8","Meme Mº Remedios",34,300,400,0.75,"2"]
[598,2010,"1","ene","enero","8","Ana Maria",35,242,484,0.5,"2"]
[602,2010,"1","ene","enero","7","Arsenia",2,1177,588.5,2,"2"]
[603,2010,"1","ene","enero","7","Narcisa Jesus",20,2163,455.36842105263156,4.75,"2"]
[604,2010,"1","ene","enero","7","Consolación",17,1580,451.42857142857144,3.5,"2"]
[605,2010,"1","ene","enero","7","Danuta",22,3079,684.22222222222217,4.5,"2"]
[606,2010,"1","ene","enero","7","Anna",10,2120,605.71428571428567,3.5,"2"]
[607,2010,"1","ene","enero","7","Begoña",21,811,405.5,2,"2"]
[608,2010,"1","ene","enero","7","Antonia",1,1148,574,2,"2"]
[609,2010,"1","ene","enero","7","Meme Mº Remedios",34,2710,542,5,"2"]
[612,2010,"1","ene","enero","9","Danuta",22,1474,655.11111111111109,2.25,"2"]
[613,2010,"1","ene","enero","9","Consolación",17,840,373.33333333333331,2.25,"2"]
[614,2010,"1","ene","enero","9","Anna",10,1060,424,2.5,"2"]
[616,2010,"1","ene","enero","9","Narcisa Jesus",20,1035,460,2.25,"2"]
[618,2010,"1","ene","enero","9","Meme Mº Remedios",34,1038,519,2,"2"]
[619,2010,"1","ene","enero","9","Antonia",1,1654,827,2,"2"]
[620,2010,"1","ene","enero","9","Ana Maria",35,1005,502.5,2,"2"]
[666,2010,"1","ene","enero","4","Meme Mº Remedios",34,3792,842.66666666666663,4.5,"2"]
[669,2010,"1","ene","enero","4","Narcisa Jesus",20,2070,487.05882352941177,4.25,"2"]
[671,2010,"1","ene","enero","4","Anna",10,3065,583.80952380952385,5.25,"2"]
[672,2010,"1","ene","enero","4","Consolación",17,2138,407.23809523809524,5.25,"2"]
[673,2010,"1","ene","enero","4","Danuta",22,2697,634.58823529411768,4.25,"2"]
[674,2010,"1","ene","enero","5","Danuta",22,1223,407.66666666666669,3,"2"]
[676,2010,"1","ene","enero","5","Meme Mº Remedios",34,1239,450.54545454545456,2.75,"2"]
[679,2010,"1","ene","enero","5","Narcisa Jesus",20,955,347.27272727272725,2.75,"2"]
[680,2010,"1","ene","enero","5","Anna",10,710,236.66666666666666,3,"2"]
[681,2010,"1","ene","enero","5","Consolación",17,926,308.66666666666669,3,"2"]
[511,2010,"1","ene","enero","14","Arsenia",2,854,427,2,"3"]
[513,2010,"1","ene","enero","14","Francisca",36,554,369.33333333333331,1.5,"3"]
[514,2010,"1","ene","enero","14","Antonia",1,475,316.66666666666669,1.5,"3"]
[515,2010,"1","ene","enero","14","Ana Maria",35,765,510,1.5,"3"]
[516,2010,"1","ene","enero","14","Meme Mº Remedios",34,862,344.8,2.5,"3"]
[517,2010,"1","ene","enero","14","Anna",10,613,245.2,2.5,"3"]
[521,2010,"1","ene","enero","14","Danuta",22,772,514.66666666666663,1.5,"3"]
[522,2010,"1","ene","enero","14","Consolación",17,593,395.33333333333331,1.5,"3"]
[525,2010,"1","ene","enero","15","Narcisa Jesus",20,885,442.5,2,"3"]
[526,2010,"1","ene","enero","15","Meme Mº Remedios",34,800,400,2,"3"]
[529,2010,"1","ene","enero","15","Antonia",1,995,497.5,2,"3"]
[530,2010,"1","ene","enero","15","Francisca",36,1084,542,2,"3"]
[531,2010,"1","ene","enero","15","Danuta",22,1071,535.5,2,"3"]
[532,2010,"1","ene","enero","15","Anna",10,927,463.5,2,"3"]
[533,2010,"1","ene","enero","15","Consolación",17,859,429.5,2,"3"]
[535,2010,"1","ene","enero","15","Arsenia",2,1096,548,2,"3"]
[540,2010,"1","ene","enero","16","Meme Mº Remedios",34,795,397.5,2,"3"]
[543,2010,"1","ene","enero","16","Narcisa Jesus",20,796,398,2,"3"]
[544,2010,"1","ene","enero","16","Consolación",17,733,366.5,2,"3"]
[545,2010,"1","ene","enero","16","Ana Maria",35,706,353,2,"3"]
[546,2010,"1","ene","enero","16","Antonia",1,1121,560.5,2,"3"]
[547,2010,"1","ene","enero","16","Francisca",36,960,480,2,"3"]
[549,2010,"1","ene","enero","16","Danuta",22,1344,672,2,"3"]
[550,2010,"1","ene","enero","16","Anna",10,673,336.5,2,"3"]
[624,2010,"1","ene","enero","11","Danuta",22,2442,574.58823529411768,4.25,"3"]
[625,2010,"1","ene","enero","11","Consolación",17,1519,357.41176470588238,4.25,"3"]
[626,2010,"1","ene","enero","11","Anna",10,2219,522.11764705882354,4.25,"3"]
[627,2010,"1","ene","enero","11","Narcisa Jesus",20,1620,405,4,"3"]
[628,2010,"1","ene","enero","11","Meme Mº Remedios",34,2319,545.64705882352939,4.25,"3"]
[630,2010,"1","ene","enero","11","Ana Maria",35,2252,563,4,"3"]
[632,2010,"1","ene","enero","12","Danuta",22,330,330,1,"3"]
[634,2010,"1","ene","enero","12","Meme Mº Remedios",34,342,456,0.75,"3"]
[639,2010,"1","ene","enero","12","Anna",10,253,253,1,"3"]
[640,2010,"1","ene","enero","12","Consolación",17,255,255,1,"3"]
[641,2010,"1","ene","enero","12","Narcisa Jesus",20,255,255,1,"3"]
[642,2010,"1","ene","enero","12","Ana Maria",35,370,370,1,"3"]
[644,2010,"1","ene","enero","13","Meme Mº Remedios",34,1278,511.2,2.5,"3"]
[646,2010,"1","ene","enero","13","Anna",10,1035,414,2.5,"3"]
[649,2010,"1","ene","enero","13","Arsenia",2,911,364.4,2.5,"3"]
[650,2010,"1","ene","enero","13","Consolación",17,948,379.2,2.5,"3"]
[651,2010,"1","ene","enero","13","Danuta",22,1220,488,2.5,"3"]
[652,2010,"1","ene","enero","13","Narcisa Jesus",20,947,378.8,2.5,"3"]
[653,2010,"1","ene","enero","13","Ana Maria",35,1134,453.6,2.5,"3"]
[655,2010,"1","ene","enero","13","Francisca",36,969,387.6,2.5,"3"]
[552,2010,"1","ene","enero","18","Anna",10,604,402.66666666666669,1.5,"4"]
[553,2010,"1","ene","enero","18","Narcisa Jesus",20,1470,490,3,"4"]
[554,2010,"1","ene","enero","18","Ana Maria",35,1492,596.79999999999995,2.5,"4"]
[557,2010,"1","ene","enero","18","Danuta",22,1808,602.66666666666663,3,"4"]
[558,2010,"1","ene","enero","18","Meme Mº Remedios",34,1985,661.66666666666663,3,"4"]
[559,2010,"1","ene","enero","18","Antonia",1,1161,464.4,2.5,"4"]
[560,2010,"1","ene","enero","18","Francisca",36,1281,512.4,2.5,"4"]
[562,2010,"1","ene","enero","18","Anna",10,1599,533,3,"4"]
[564,2010,"1","ene","enero","18","Consolación",17,1439,479.66666666666669,3,"4"]
[569,2010,"1","ene","enero","19","Narcisa Jesus",20,503,402.4,1.25,"4"]
[571,2010,"1","ene","enero","19","Meme Mº Remedios",34,856,570.66666666666663,1.5,"4"]
[575,2010,"1","ene","enero","19","Ana Maria",35,734,587.20000000000005,1.25,"4"]
[576,2010,"1","ene","enero","19","Danuta",22,514,411.2,1.25,"4"]
[577,2010,"1","ene","enero","19","Consolación",17,575,460,1.25,"4"]
[578,2010,"1","ene","enero","20","Danuta",22,1584,528,3,"4"]
[580,2010,"1","ene","enero","20","Anna",10,1398,466,3,"4"]
[581,2010,"1","ene","enero","20","Consolación",17,1229,409.66666666666669,3,"4"]
[584,2010,"1","ene","enero","20","Meme Mº Remedios",34,1865,621.66666666666663,3,"4"]
[586,2010,"1","ene","enero","20","Narcisa Jesus",20,1418,472.66666666666669,3,"4"]
[664,2010,"1","ene","enero","20","Narcisa Jesus",20,1280,465.45454545454544,2.75,"4"]
[2,2009,"4","oct","octubre","297","Fatima",43,1008,252,4,"43"]
[4,2009,"4","oct","octubre","297","Pafience",15,695,347.5,2,"43"]
[6,2009,"4","oct","octubre","297","Meme Mº Remedios",34,2565,366.42857142857144,7,"43"]
[7,2009,"4","oct","octubre","297","Danuta",22,4184,697.33333333333337,6,"43"]
[132,2009,"4","oct","octubre","292","Anna",10,699,466,1.5,"43"]
[8,2009,"4","oct","octubre","299","Meme Mº Remedios",34,5691,711.375,8,"44"]
[9,2009,"4","oct","octubre","299","Ana Maria",35,3875,704.5454545454545,5.5,"44"]
[10,2009,"4","oct","octubre","299","Anna",10,4995,713.57142857142856,7,"44"]
[11,2009,"4","oct","octubre","299","Carla",14,485,485,1,"44"]
[12,2009,"4","oct","octubre","299","Fatima",43,500,500,1,"44"]
[13,2009,"4","oct","octubre","299","Danuta",22,6354,907.71428571428567,7,"44"]
[14,2009,"4","oct","octubre","299","Pafience",15,500,434.78260869565219,1.1499999999999999,"44"]
[15,2009,"4","oct","octubre","299","Francisca",36,1959,435.33333333333331,4.5,"44"]
[16,2009,"4","oct","octubre","300","Meme Mº Remedios",34,3145,483.84615384615387,6.5,"44"]
[17,2009,"4","oct","octubre","300","Pafience",15,742,345.11627906976747,2.15,"44"]
[18,2009,"4","oct","octubre","300","Carla",14,410,410,1,"44"]
[19,2009,"4","oct","octubre","300","Fatima",43,707,471.33333333333331,1.5,"44"]
[20,2009,"4","oct","octubre","300","Danuta",22,5091,727.28571428571433,7,"44"]
[21,2009,"4","oct","octubre","300","Anna",10,3433,528.15384615384619,6.5,"44"]
[26,2009,"4","oct","octubre","303","Danuta",22,7744,968,8,"44"]
[28,2009,"4","oct","octubre","303","Meme Mº Remedios",34,6318,1148.7272727272727,5.5,"44"]
[29,2009,"4","oct","octubre","303","Anna",10,4335,666.92307692307691,6.5,"44"]
[32,2009,"4","oct","octubre","304","Meme Mº Remedios",34,4640,843.63636363636363,5.5,"44"]
[33,2009,"4","oct","octubre","304","Danuta",22,5625,1022.7272727272727,5.5,"44"]
[38,2009,"4","nov","noviembre","306","Francisca",36,1934,552.57142857142856,3.5,"45"]
[40,2009,"4","nov","noviembre","306","Danuta",22,6873,1057.3846153846155,6.5,"45"]
[41,2009,"4","nov","noviembre","306","Ana Maria",35,4751,730.92307692307691,6.5,"45"]
[42,2009,"4","nov","noviembre","306","Anna",10,4221,649.38461538461536,6.5,"45"]
[43,2009,"4","nov","noviembre","306","Meme Mº Remedios",34,4714,725.23076923076928,6.5,"45"]
[44,2009,"4","nov","noviembre","307","Meme Mº Remedios",34,3320,737.77777777777783,4.5,"45"]
[46,2009,"4","nov","noviembre","307","Anna",10,2568,570.66666666666663,4.5,"45"]
[47,2009,"4","nov","noviembre","307","Danuta",22,3897,866,4.5,"45"]
[48,2009,"4","nov","noviembre","308","Meme Mº Remedios",34,3113,778.25,4,"45"]
[51,2009,"4","nov","noviembre","308","Narcisa Jesus",20,2288,572,4,"45"]
[100,2009,"4","nov","noviembre","311","Meme Mº Remedios",34,2950,655.55555555555554,4.5,"45"]
[101,2009,"4","nov","noviembre","311","Antonia",1,998,499,2,"45"]
[102,2009,"4","nov","noviembre","311","Anna",10,1952,433.77777777777777,4.5,"45"]
[103,2009,"4","nov","noviembre","311","Danuta",22,3817,848.22222222222217,4.5,"45"]
[104,2009,"4","nov","noviembre","311","Narcisa Jesus",20,2511,558,4.5,"45"]
[105,2009,"4","nov","noviembre","311","Consolación",17,2097,466,4.5,"45"]
[107,2009,"4","nov","noviembre","311","Francisca",36,800,400,2,"45"]
[114,2009,"4","nov","noviembre","309","Anna",10,1807,301.16666666666669,6,"45"]
[115,2009,"4","nov","noviembre","309","Danuta",22,2630,751.42857142857144,3.5,"45"]
[117,2009,"4","nov","noviembre","309","Narcisa Jesus",20,2010,574.28571428571433,3.5,"45"]
[118,2009,"4","nov","noviembre","309","Consolación",17,1852,529.14285714285711,3.5,"45"]
[120,2009,"4","nov","noviembre","310","Danuta",22,2768,692,4,"45"]
[121,2009,"4","nov","noviembre","310","Narcisa Jesus",20,2183,545.75,4,"45"]
[122,2009,"4","nov","noviembre","310","Consolación",17,1395,398.57142857142856,3.5,"45"]
[123,2009,"4","nov","noviembre","310","Anna",10,1220,305,4,"45"]
[124,2009,"4","nov","noviembre","310","Francisca",36,1290,368.57142857142856,3.5,"45"]
[125,2009,"4","nov","noviembre","310","Begoña",21,1381,394.57142857142856,3.5,"45"]
[126,2009,"4","nov","noviembre","310","Arsenia",2,2307,659.14285714285711,3.5,"45"]
[127,2009,"4","nov","noviembre","310","Meme Mº Remedios",34,2378,594.5,4,"45"]
[128,2009,"4","nov","noviembre","310","Antonia",1,2172,620.57142857142856,3.5,"45"]
[170,2009,"4","nov","noviembre","310","Ana Maria",35,3129,782.25,4,"45"]
[171,2009,"4","nov","noviembre","311","Ana Maria",35,895,447.5,2,"45"]
[302,2009,"4","nov","noviembre","307","Narcisa Jesus",20,480,960,0.5,"45"]
[335,2009,"4","nov","noviembre","311","Ana Maria",35,2415,805,3,"45"]
[68,2009,"4","nov","noviembre","314","Begoña",21,544,217.6,2.5,"46"]
[69,2009,"4","nov","noviembre","316","Narcisa Jesus",20,3180,578.18181818181813,5.5,"46"]
[70,2009,"4","nov","noviembre","316","Consolación",17,3120,567.27272727272725,5.5,"46"]
[71,2009,"4","nov","noviembre","316","Danuta",22,4627,841.27272727272725,5.5,"46"]
[72,2009,"4","nov","noviembre","316","Mateo",99,220,146.66666666666666,1.5,"46"]
[76,2009,"4","nov","noviembre","316","Meme Mº Remedios",34,3846,769.2,5,"46"]
[77,2009,"4","nov","noviembre","316","Meme Mº Remedios",34,710,710,1,"46"]
[78,2009,"4","nov","noviembre","315","Consolación",17,415,415,1,"46"]
[82,2009,"4","nov","noviembre","315","Danuta",22,633,633,1,"46"]
[83,2009,"4","nov","noviembre","315","Anna",10,830,830,1,"46"]
[84,2009,"4","nov","noviembre","314","Narcisa Jesus",20,1245,622.5,2,"46"]
[85,2009,"4","nov","noviembre","314","Danuta",22,1238,495.2,2.5,"46"]
[86,2009,"4","nov","noviembre","314","Consolación",17,603,241.2,2.5,"46"]
[87,2009,"4","nov","noviembre","314","Meme Mº Remedios",34,2085,834,2.5,"46"]
[88,2009,"4","nov","noviembre","314","Anna",10,1032,412.8,2.5,"46"]
[90,2009,"4","nov","noviembre","313","Antonia",1,2632,658,4,"46"]
[91,2009,"4","nov","noviembre","313","Arsenia",2,2544,636,4,"46"]
[92,2009,"4","nov","noviembre","313","Meme Mº Remedios",34,2763,690.75,4,"46"]
[93,2009,"4","nov","noviembre","313","Consolación",17,1728,432,4,"46"]
[94,2009,"4","nov","noviembre","313","Anna",10,2180,545,4,"46"]
[95,2009,"4","nov","noviembre","313","Begoña",21,1384,346,4,"46"]
[96,2009,"4","nov","noviembre","313","Francisca",36,2030,507.5,4,"46"]
[97,2009,"4","nov","noviembre","313","Narcisa Jesus",20,2065,516.25,4,"46"]
[99,2009,"4","nov","noviembre","313","Danuta",22,2678,669.5,4,"46"]
[135,2009,"4","nov","noviembre","318","Meme Mº Remedios",34,2634,752.57142857142856,3.5,"46"]
[136,2009,"4","nov","noviembre","318","Consolación",17,1310,374.28571428571428,3.5,"46"]
[137,2009,"4","nov","noviembre","318","Anna",10,1546,441.71428571428572,3.5,"46"]
[138,2009,"4","nov","noviembre","318","Narcisa Jesus",20,2052,586.28571428571433,3.5,"46"]
[139,2009,"4","nov","noviembre","318","Danuta",22,3002,857.71428571428567,3.5,"46"]
[142,2009,"4","nov","noviembre","318","Francisca",36,769,384.5,2,"46"]
[156,2009,"4","nov","noviembre","318","Ana Maria",35,969,484.5,2,"46"]
[158,2009,"4","nov","noviembre","318","Arsenia",2,964,482,2,"46"]
[160,2009,"4","nov","noviembre","317","Narcisa Jesus",20,2303,658,3.5,"46"]
[161,2009,"4","nov","noviembre","317","Meme Mº Remedios",34,2578,736.57142857142856,3.5,"46"]
[164,2009,"4","nov","noviembre","317","Anna",10,2834,809.71428571428567,3.5,"46"]
[165,2009,"4","nov","noviembre","317","Consolación",17,1880,537.14285714285711,3.5,"46"]
[166,2009,"4","nov","noviembre","317","Danuta",22,3537,1010.5714285714286,3.5,"46"]
[167,2009,"4","nov","noviembre","317","Ana Maria",35,1221,542.66666666666663,2.25,"46"]
[168,2009,"4","nov","noviembre","315","Ana Maria",35,681,681,1,"46"]
[169,2009,"4","nov","noviembre","313","Ana Maria",35,2234,496.44444444444446,4.5,"46"]
[52,2009,"4","nov","noviembre","320","Ana Maria",35,1980,990,2,"47"]
[53,2009,"4","nov","noviembre","321","Consolación",17,925,462.5,2,"47"]
[54,2009,"4","nov","noviembre","321","Danuta",22,1286,643,2,"47"]
[55,2009,"4","nov","noviembre","321","Anna",10,932,466,2,"47"]
[56,2009,"4","nov","noviembre","321","Narcisa Jesus",20,988,494,2,"47"]
[57,2009,"4","nov","noviembre","321","Meme Mº Remedios",34,1370,685,2,"47"]
[58,2009,"4","nov","noviembre","321","Antonia",1,846,846,1,"47"]
[59,2009,"4","nov","noviembre","321","Francisca",36,494,494,1,"47"]
[60,2009,"4","nov","noviembre","321","Ana Maria",35,666,666,1,"47"]
[62,2009,"4","nov","noviembre","322","Meme Mº Remedios",34,1588,635.20000000000005,2.5,"47"]
[63,2009,"4","nov","noviembre","322","Narcisa Jesus",20,1308,523.20000000000005,2.5,"47"]
[64,2009,"4","nov","noviembre","322","Danuta",22,1700,680,2.5,"47"]
[109,2009,"4","nov","noviembre","323","Arsenia",2,426,426,1,"47"]
[110,2009,"4","nov","noviembre","323","Consolación",17,575,383.33333333333331,1.5,"47"]
[111,2009,"4","nov","noviembre","323","Ana Maria",35,526,350.66666666666669,1.5,"47"]
[112,2009,"4","nov","noviembre","323","Danuta",22,792,528,1.5,"47"]
[113,2009,"4","nov","noviembre","322","Ana Maria",35,1351,540.4,2.5,"47"]
[129,2009,"4","nov","noviembre","323","Meme Mº Remedios",34,641,427.33333333333331,1.5,"47"]
[133,2009,"4","nov","noviembre","323","Narcisa Jesus",20,725,483.33333333333331,1.5,"47"]
[143,2009,"4","nov","noviembre","320","Arsenia",2,1634,653.6,2.5,"47"]
[144,2009,"4","nov","noviembre","320","Meme Mº Remedios",34,3255,723.33333333333337,4.5,"47"]
[145,2009,"4","nov","noviembre","320","Antonia",1,1418,472.66666666666669,3,"47"]
[146,2009,"4","nov","noviembre","320","Francisca",36,1300,433.33333333333331,3,"47"]
[148,2009,"4","nov","noviembre","320","Consolación",17,2103,467.33333333333331,4.5,"47"]
[150,2009,"4","nov","noviembre","320","Danuta",22,3194,709.77777777777783,4.5,"47"]
[151,2009,"4","nov","noviembre","320","Anna",10,2691,598,4.5,"47"]
[152,2009,"4","nov","noviembre","324","Meme Mº Remedios",34,2818,626.22222222222217,4.5,"47"]
[154,2009,"4","nov","noviembre","324","Consolación",17,2417,537.11111111111109,4.5,"47"]
[155,2009,"4","nov","noviembre","324","Anna",10,2678,595.11111111111109,4.5,"47"]
[175,2009,"4","nov","noviembre","322","Anna",10,1541,513.66666666666663,3,"47"]
[176,2009,"4","nov","noviembre","322","Consolación",17,1168,389.33333333333331,3,"47"]
[177,2009,"4","nov","noviembre","323","Antonia",1,438,438,1,"47"]
[179,2009,"4","nov","noviembre","323","Francisca",36,615,410,1.5,"47"]
[182,2009,"4","nov","noviembre","324","Narcisa Jesus",20,2443,542.88888888888891,4.5,"47"]
[183,2009,"4","nov","noviembre","325","Ana Maria",35,1560,725.58139534883719,2.15,"47"]
[184,2009,"4","nov","noviembre","325","Arsenia",2,1101,550.5,2,"47"]
[185,2009,"4","nov","noviembre","325","Narcisa Jesus",20,811,540.66666666666663,1.5,"47"]
[188,2009,"4","nov","noviembre","325","Danuta",22,1674,669.6,2.5,"47"]
[189,2009,"4","nov","noviembre","325","Consolación",17,1037,414.8,2.5,"47"]
[190,2009,"4","nov","noviembre","325","Meme Mº Remedios",34,1167,466.8,2.5,"47"]
[192,2009,"4","nov","noviembre","325","Anna",10,1397,558.79999999999995,2.5,"47"]
[193,2009,"4","nov","noviembre","325","Francisca",36,977,488.5,2,"47"]
[194,2009,"4","nov","noviembre","325","Antonia",1,933,466.5,2,"47"]
[195,2009,"4","nov","noviembre","327","Ana Maria",35,2717,1086.8,2.5,"48"]
[198,2009,"4","nov","noviembre","327","Meme Mº Remedios",34,1968,787.2,2.5,"48"]
[199,2009,"4","nov","noviembre","327","Arsenia",2,2072,690.66666666666663,3,"48"]
[200,2009,"4","nov","noviembre","327","Narcisa Jesus",20,2125,850,2.5,"48"]
[202,2009,"4","nov","noviembre","327","Consolación",17,1721,382.44444444444446,4.5,"48"]
[203,2009,"4","nov","noviembre","327","Anna",10,2219,634,3.5,"48"]
[204,2009,"4","nov","noviembre","327","Danuta",22,2243,640.85714285714289,3.5,"48"]
[205,2009,"4","nov","noviembre","327","Francisca",36,1625,541.66666666666663,3,"48"]
[206,2009,"4","nov","noviembre","327","Antonia",1,1740,580,3,"48"]
[207,2009,"4","nov","noviembre","327","Begoña",21,1219,406.33333333333331,3,"48"]
[209,2009,"4","nov","noviembre","328","Narcisa Jesus",20,897,598,1.5,"48"]
[210,2009,"4","nov","noviembre","328","Anna",10,734,489.33333333333331,1.5,"48"]
[211,2009,"4","nov","noviembre","328","Meme Mº Remedios",34,670,446.66666666666669,1.5,"48"]
[213,2009,"4","nov","noviembre","328","Consolación",17,669,446,1.5,"48"]
[214,2009,"4","nov","noviembre","328","Danuta",22,941,627.33333333333337,1.5,"48"]
[217,2009,"4","nov","noviembre","329","Antonia",1,1285,514,2.5,"48"]
[218,2009,"4","nov","noviembre","329","Francisca",36,1142,456.8,2.5,"48"]
[219,2009,"4","nov","noviembre","329","Ana Maria",35,1564,568.72727272727275,2.75,"48"]
[222,2009,"4","nov","noviembre","329","Narcisa Jesus",20,1388,504.72727272727275,2.75,"48"]
[223,2009,"4","nov","noviembre","329","Anna",10,1267,506.8,2.5,"48"]
[224,2009,"4","nov","noviembre","329","Danuta",22,1664,665.6,2.5,"48"]
[226,2009,"4","nov","noviembre","329","Meme Mº Remedios",34,915,305,3,"48"]
[227,2009,"4","nov","noviembre","329","Consolación",17,1116,446.4,2.5,"48"]
[229,2009,"4","nov","noviembre","329","Arsenia",2,1258,503.2,2.5,"48"]
[230,2009,"4","nov","noviembre","329","Begoña",21,891,356.4,2.5,"48"]
[243,2009,"4","nov","noviembre","331","Narcisa Jesus",20,1785,595,3,"48"]
[244,2009,"4","nov","noviembre","331","Anna",10,1705,487.14285714285717,3.5,"48"]
[245,2009,"4","nov","noviembre","331","Danuta",22,2578,736.57142857142856,3.5,"48"]
[246,2009,"4","nov","noviembre","331","Arsenia",2,1726,493.14285714285717,3.5,"48"]
[247,2009,"4","nov","noviembre","331","Begoña",21,1627,542.33333333333337,3,"48"]
[248,2009,"4","nov","noviembre","331","Antonia",1,2162,617.71428571428567,3.5,"48"]
[253,2009,"4","nov","noviembre","331","Meme Mº Remedios",34,1425,438.46153846153845,3.25,"48"]
[254,2009,"4","nov","noviembre","331","Francisca",36,1765,784.44444444444446,2.25,"48"]
[255,2009,"4","nov","noviembre","332","Begoña",21,664,295.11111111111109,2.25,"48"]
[257,2009,"4","nov","noviembre","332","Anna",10,845,422.5,2,"48"]
[258,2009,"4","nov","noviembre","332","Danuta",22,1288,644,2,"48"]
[259,2009,"4","nov","noviembre","332","Meme Mº Remedios",34,565,251.11111111111111,2.25,"48"]
[262,2009,"4","nov","noviembre","332","Francisca",36,713,713,1,"48"]
[263,2009,"4","nov","noviembre","334","Francisca",36,2031,624.92307692307691,3.25,"49"]
[264,2009,"4","nov","noviembre","334","Begoña",21,2012,503,4,"49"]
[265,2009,"4","nov","noviembre","334","Arsenia",2,2024,506,4,"49"]
[266,2009,"4","nov","noviembre","334","Anna",10,2084,490.35294117647061,4.25,"49"]
[267,2009,"4","nov","noviembre","334","Danuta",22,2942,692.23529411764707,4.25,"49"]
[268,2009,"4","nov","noviembre","334","Consolación",17,2261,532,4.25,"49"]
[270,2009,"4","nov","noviembre","334","Meme Mº Remedios",34,2050,512.5,4,"49"]
[272,2009,"4","nov","noviembre","334","Ana Maria",35,2771,692.75,4,"49"]
[273,2009,"4","nov","noviembre","334","Narcisa Jesus",20,2025,506.25,4,"49"]
[276,2009,"4","dic","diciembre","335","Narcisa Jesus",20,400,800,0.5,"49"]
[278,2009,"4","dic","diciembre","335","Meme Mº Remedios",34,380,760,0.5,"49"]
[281,2009,"4","dic","diciembre","335","Danuta",22,363,726,0.5,"49"]
[282,2009,"4","dic","diciembre","335","Anna",10,220,440,0.5,"49"]
[283,2009,"4","dic","diciembre","335","Consolación",17,280,560,0.5,"49"]
[284,2009,"4","dic","diciembre","336","Ana Maria",35,1218,812,1.5,"49"]
[286,2009,"4","dic","diciembre","336","Francisca",36,1366,546.4,2.5,"49"]
[287,2009,"4","dic","diciembre","336","Narcisa Jesus",20,1167,466.8,2.5,"49"]
[288,2009,"4","dic","diciembre","336","Antonia",1,1212,484.8,2.5,"49"]
[290,2009,"4","dic","diciembre","336","Meme Mº Remedios",34,1260,504,2.5,"49"]
[292,2009,"4","dic","diciembre","336","Danuta",22,1361,544.4,2.5,"49"]
[293,2009,"4","dic","diciembre","336","Consolación",17,1390,556,2.5,"49"]
[294,2009,"4","dic","diciembre","336","Anna",10,1312,524.79999999999995,2.5,"49"]
[296,2009,"4","dic","diciembre","336","Arsenia",2,1292,516.79999999999995,2.5,"49"]
[297,2009,"4","dic","diciembre","336","Begoña",21,511,511,1,"49"]
[298,2009,"4","dic","diciembre","337","Begoña",21,441,294,1.5,"49"]
[299,2009,"4","dic","diciembre","337","Ana Maria",35,417,333.6,1.25,"49"]
[300,2009,"4","dic","diciembre","337","Francisca",36,392,313.60000000000002,1.25,"49"]
[305,2009,"4","dic","diciembre","337","Meme Mº Remedios",34,515,343.33333333333331,1.5,"49"]
[306,2009,"4","dic","diciembre","337","Danuta",22,676,450.66666666666669,1.5,"49"]
[307,2009,"4","dic","diciembre","337","Anna",10,511,408.8,1.25,"49"]
[308,2009,"4","dic","diciembre","337","Consolación",17,698,465.33333333333331,1.5,"49"]
[310,2009,"4","dic","diciembre","338","Anna",10,1945,778,2.5,"49"]
[311,2009,"4","dic","diciembre","338","Narcisa Jesus",20,3406,1362.4,2.5,"49"]
[312,2009,"4","dic","diciembre","338","Meme Mº Remedios",34,2370,677.14285714285711,3.5,"49"]
[315,2009,"4","dic","diciembre","338","Danuta",22,2377,559.29411764705878,4.25,"49"]
[316,2009,"4","dic","diciembre","338","Consolación",17,2148,505.41176470588238,4.25,"49"]
[319,2009,"4","dic","diciembre","339","Ana Maria",35,1134,504,2.25,"49"]
[320,2009,"4","dic","diciembre","339","Narcisa Jesus",20,1135,454,2.5,"49"]
[321,2009,"4","dic","diciembre","339","Meme Mº Remedios",34,1430,572,2.5,"49"]
[324,2009,"4","dic","diciembre","339","Danuta",22,1311,524.4,2.5,"49"]
[328,2009,"4","dic","diciembre","339","Consolación",17,1001,400.4,2.5,"49"]
[329,2009,"4","dic","diciembre","339","Anna",10,718,287.2,2.5,"49"]
[330,2009,"4","dic","diciembre","339","Anna",10,504,504,1,"49"]
[331,2009,"4","dic","diciembre","339","Begoña",21,744,330.66666666666669,2.25,"49"]
[332,2009,"4","dic","diciembre","339","Francisca",36,732,325.33333333333331,2.25,"49"]
[336,2009,"4","dic","diciembre","341","Begoña",21,1708,569.33333333333337,3,"50"]
[337,2009,"4","dic","diciembre","341","Meme Mº Remedios",34,2178,311.14285714285717,7,"50"]
[338,2009,"4","dic","diciembre","341","Antonia",1,1866,622,3,"50"]
[339,2009,"4","dic","diciembre","341","Francisca",36,1494,498,3,"50"]
[340,2009,"4","dic","diciembre","341","Danuta",22,2563,854.33333333333337,3,"50"]
[341,2009,"4","dic","diciembre","341","Consolación",17,1842,614,3,"50"]
[344,2009,"4","dic","diciembre","343","Meme Mº Remedios",34,2658,559.57894736842104,4.75,"50"]
[347,2009,"4","dic","diciembre","343","Narcisa Jesus",20,1983,396.6,5,"50"]
[348,2009,"4","dic","diciembre","343","Danuta",22,2702,540.4,5,"50"]
[349,2009,"4","dic","diciembre","343","Consolación",17,2210,442,5,"50"]
[350,2009,"4","dic","diciembre","343","Anna",10,2212,442.4,5,"50"]
[353,2009,"4","dic","diciembre","344","Anna",10,692,346,2,"50"]
[357,2009,"4","dic","diciembre","344","Narcisa Jesus",20,1006,503,2,"50"]
[359,2009,"4","dic","diciembre","344","Meme Mº Remedios",34,1215,607.5,2,"50"]
[361,2009,"4","dic","diciembre","344","Danuta",22,1113,556.5,2,"50"]
[362,2009,"4","dic","diciembre","344","Consolación",17,922,461,2,"50"]
[364,2009,"4","dic","diciembre","345","Anna",10,1482,395.2,3.75,"50"]
[365,2009,"4","dic","diciembre","345","Consolación",17,1462,449.84615384615387,3.25,"50"]
[366,2009,"4","dic","diciembre","345","Narcisa Jesus",20,1536,409.6,3.75,"50"]
[368,2009,"4","dic","diciembre","345","Meme Mº Remedios",34,2035,581.42857142857144,3.5,"50"]
[369,2009,"4","dic","diciembre","345","Danuta",22,2274,699.69230769230774,3.25,"50"]
[370,2009,"4","dic","diciembre","345","Antonia",1,1130,410.90909090909093,2.75,"50"]
[372,2009,"4","dic","diciembre","345","Francisca",36,1217,442.54545454545456,2.75,"50"]
[373,2009,"4","dic","diciembre","345","Begoña",21,985,328.33333333333331,3,"50"]
[375,2009,"4","dic","diciembre","346","Meme Mº Remedios",34,3391,34.252525252525253,99,"50"]
[378,2009,"4","dic","diciembre","346","Anna",10,2300,460,5,"50"]
[379,2009,"4","dic","diciembre","346","Consolación",17,2885,577,5,"50"]
[380,2009,"4","dic","diciembre","346","Narcisa Jesus",20,2150,430,5,"50"]
[381,2009,"4","dic","diciembre","346","Danuta",22,3559,711.8,5,"50"]
[383,2009,"4","dic","diciembre","345","Ana Maria",35,1723,689.2,2.5,"50"]
[382,2009,"4","dic","diciembre","348","Narcisa Jesus",20,1487,495.66666666666669,3,"51"]
[384,2009,"4","dic","diciembre","348","Meme Mº Remedios",34,2303,658,3.5,"51"]
[386,2009,"4","dic","diciembre","348","Consolación",17,1502,500.66666666666669,3,"51"]
[387,2009,"4","dic","diciembre","348","Anna",10,1450,483.33333333333331,3,"51"]
[390,2009,"4","dic","diciembre","348","Antonia",1,1440,443.07692307692309,3.25,"51"]
[392,2009,"4","dic","diciembre","348","Ana Maria",35,1889,629.66666666666663,3,"51"]
[393,2009,"4","dic","diciembre","348","Begoña",21,1136,378.66666666666669,3,"51"]
[394,2009,"4","dic","diciembre","349","Anna",10,824,412,2,"51"]
[395,2009,"4","dic","diciembre","349","Narcisa Jesus",20,915,457.5,2,"51"]
[396,2009,"4","dic","diciembre","349","Consolación",17,679,339.5,2,"51"]
[398,2009,"4","dic","diciembre","349","Meme Mº Remedios",34,1000,500,2,"51"]
[401,2009,"4","dic","diciembre","350","Francisca",36,1888,629.33333333333337,3,"51"]
[402,2009,"4","dic","diciembre","350","Antonia",1,2012,670.66666666666663,3,"51"]
[404,2009,"4","dic","diciembre","350","Consolación",17,2730,496.36363636363637,5.5,"51"]
[405,2009,"4","dic","diciembre","350","Meme Mº Remedios",34,4345,790,5.5,"51"]
[406,2009,"4","dic","diciembre","350","Narcisa Jesus",20,2836,515.63636363636363,5.5,"51"]
[409,2009,"4","dic","diciembre","350","Ana Maria",35,2138,777.4545454545455,2.75,"51"]
[411,2009,"4","dic","diciembre","351","Consolación",17,820,328,2.5,"51"]
[414,2009,"4","dic","diciembre","351","Ana Maria",35,1203,481.2,2.5,"51"]
[415,2009,"4","dic","diciembre","351","Narcisa Jesus",20,905,362,2.5,"51"]
[416,2009,"4","dic","diciembre","351","Meme Mº Remedios",34,1061,424.4,2.5,"51"]
[418,2009,"4","dic","diciembre","352","Carla",14,226,180.8,1.25,"51"]
[419,2009,"4","dic","diciembre","352","Arsenia",2,375,750,0.5,"51"]
[420,2009,"4","dic","diciembre","352","Consolación",17,3092,618.4,5,"51"]
[421,2009,"4","dic","diciembre","352","Francisca",36,575,575,1,"51"]
[422,2009,"4","dic","diciembre","352","Begoña",21,1372,274.39999999999998,5,"51"]
[424,2009,"4","dic","diciembre","352","Narcisa Jesus",20,2390,434.54545454545456,5.5,"51"]
[427,2009,"4","dic","diciembre","352","Meme Mº Remedios",34,4512,820.36363636363637,5.5,"51"]
[428,2009,"4","dic","diciembre","352","Ana Maria",35,2650,757.14285714285711,3.5,"51"]
[429,2009,"4","dic","diciembre","353","Begoña",21,276,276,1,"51"]
[430,2009,"4","dic","diciembre","353","Francisca",36,550,440,1.25,"51"]
[431,2009,"4","dic","diciembre","353","Consolación",17,2317,514.88888888888891,4.5,"51"]
[432,2009,"4","dic","diciembre","353","Antonia",1,430,430,1,"51"]
[433,2009,"4","dic","diciembre","353","Candy",18,1110,634.28571428571433,1.75,"51"]
[434,2009,"4","dic","diciembre","353","Carla",14,299,299,1,"51"]
[435,2009,"4","dic","diciembre","353","Meme Mº Remedios",34,3601,600.16666666666663,6,"51"]
[437,2009,"4","dic","diciembre","353","Narcisa Jesus",20,2304,438.85714285714283,5.25,"51"]
[438,2009,"4","dic","diciembre","353","Ana Maria",35,387,387,1,"51"]
[439,2009,"4","dic","diciembre","353","Arsenia",2,930,531.42857142857144,1.75,"51"]
[440,2009,"4","dic","diciembre","355","Arsenia",2,1211,605.5,2,"52"]
[441,2009,"4","dic","diciembre","355","Meme Mº Remedios",34,4988,767.38461538461536,6.5,"52"]
[442,2009,"4","dic","diciembre","355","Antonia",1,1350,490.90909090909093,2.75,"52"]
[443,2009,"4","dic","diciembre","355","Consolación",17,3446,530.15384615384619,6.5,"52"]
[445,2009,"4","dic","diciembre","355","Narcisa Jesus",20,3835,590,6.5,"52"]
[449,2009,"4","dic","diciembre","355","Ana Maria",35,1727,628,2.75,"52"]
[450,2009,"4","dic","diciembre","356","Ana Maria",35,4695,782.5,6,"52"]
[453,2009,"4","dic","diciembre","356","Narcisa Jesus",20,960,384,2.5,"52"]
[456,2009,"4","dic","diciembre","356","Consolación",17,1023,454.66666666666669,2.25,"52"]
[458,2009,"4","dic","diciembre","357","Narcisa Jesus",20,4128,688,6,"52"]
[461,2009,"4","dic","diciembre","357","Consolación",17,3715,646.08695652173913,5.75,"52"]
[467,2009,"4","dic","diciembre","360","Meme Mº Remedios",34,3928,654.66666666666663,6,"52"]
[468,2009,"4","dic","diciembre","360","Arsenia",2,2407,687.71428571428567,3.5,"52"]
[471,2009,"4","dic","diciembre","360","Consolación",17,3093,515.5,6,"52"]
[472,2009,"4","dic","diciembre","360","Narcisa Jesus",20,3190,531.66666666666663,6,"52"]
[474,2009,"4","dic","diciembre","358","Narcisa Jesus",20,3643,607.16666666666663,6,"52"]
[475,2009,"4","dic","diciembre","358","Silvestre",41,770,770,1,"52"]
[476,2009,"4","dic","diciembre","358","Meme Mº Remedios",34,5504,917.33333333333337,6,"52"]
[477,2009,"4","dic","diciembre","358","Consolación",17,3211,535.16666666666663,6,"52"]
[478,2009,"4","dic","diciembre","358","Ana Maria",35,4140,690,6,"52"]
[479,2009,"4","dic","diciembre","360","Ana Maria",35,2262,646.28571428571433,3.5,"52"]
[480,2009,"4","dic","diciembre","362","Carla",14,303,606,0.5,"53"]
[484,2009,"4","dic","diciembre","362","Meme Mº Remedios",34,5818,1057.8181818181818,5.5,"53"]
[485,2009,"4","dic","diciembre","362","Ana Maria",35,5236,775.7037037037037,6.75,"53"]
[486,2009,"4","dic","diciembre","362","Candy",18,543,362,1.5,"53"]
[487,2009,"4","dic","diciembre","362","Consolación",17,3981,723.81818181818187,5.5,"53"]
[489,2009,"4","dic","diciembre","363","Danuta",22,368,736,0.5,"53"]
[490,2009,"4","dic","diciembre","363","Meme Mº Remedios",34,436,436,1,"53"]
[493,2009,"4","dic","diciembre","363","Narcisa Jesus",20,245,490,0.5,"53"]
[496,2009,"4","dic","diciembre","364","Consolación",17,3604,514.85714285714289,7,"53"]
[497,2009,"4","dic","diciembre","364","Danuta",22,5433,776.14285714285711,7,"53"]
[499,2009,"4","dic","diciembre","364","Narcisa Jesus",20,3406,486.57142857142856,7,"53"]
[500,2009,"4","dic","diciembre","364","Meme Mº Remedios",34,4935,705,7,"53"]
[502,2009,"4","dic","diciembre","364","Danuta",22,1807,722.8,2.5,"53"]
[504,2009,"4","dic","diciembre","365","Danuta",22,2762,613.77777777777783,4.5,"53"]
[505,2009,"4","dic","diciembre","365","Anna",10,2009,446.44444444444446,4.5,"53"]
[506,2009,"4","dic","diciembre","365","Consolación",17,1907,423.77777777777777,4.5,"53"]
[507,2009,"4","dic","diciembre","365","Narcisa Jesus",20,2030,451.11111111111109,4.5,"53"]
[508,2009,"4","dic","diciembre","365","Meme Mº Remedios",34,1780,791.11111111111109,2.25,"53"]